Workbook

Sheet Sheet1
I1: حسومات
A2: التاريخ | B2: الاسم والشهرة | C2: المشروع | D2: عدد الساعات | E2: عدد الأيام | F2: أيام مواصلات | G2: سعر الساعة | H2: محموع اولي | I2: حسم تأمين | J2: حسم سلف | K2: فرق نقل اجازات | L2: حسم ثياب | M2: حسم مسلكي | N2: مجموع حسومات | O2: زيادة خطأ | P2: مجموع نهائي | Q2: ملاحظات | R2: دوام | XEW2: 45658 | XEX2: مروان نجم الدين | XEY2: بيروت 700 | XEZ2: 8 | XFA2: M | XFB2: 1.298076923
A3: 2025-01-01 | B3: احمد العتري | C3: دار العجزة | D3: =SUM(IF((B3=يومية!B$2:B$200)*(C3=يومية!C$2:C$200),يومية!D$2:D$200,"")) -> 16 | E3: =SUM(IF((B3=يومية!B$2:B$200)*(C3=يومية!C$2:C$200),1,"")) -> 2 | F3: =SUM(IF((B3=يومية!B$2:B$200)*(C3=يومية!C$2:C$200),يومية!H$2:H$200,"")) -> 10 | G3: 1.298076923 | H3: =D3*G3 -> 20.76923077 | I3: 2 | N3: =M3+L3+K3+J3+I3 -> 2 | P3: =H3+O3-N3 -> 18.76923077 | R3: M | XEW3: 45658 | XEX3: غسان عبود | XEY3: بيروت 700 | XEZ3: 8 | XFA3: E | XFB3: 1.298076923
... 4 more rows

Sheet emp
A2: مروان نجم الدين
A3: غسان عبود
A4: أنور الجبيلي
A5: خالد الظريف
A6: خالد مارديني
A7: محمد سبيتي
A8: حسين شعيتو
A9: عصام شعيتو
A10: احمد العتري
A11: محمد حمد
A12: يوسف كيالي
A13: شادي حمادي
A14: احمد الأحمد
A15: علي العلي
A16: فؤاد برجاوي
A17: زين العابدين ارناؤوط
A18: مياد شداد
A19: محمد الشيخ
A20: رباح غطاس
A21: احمد كمال الدين
A22: فادي شاتيلا
A23: عبد زيدان
A24: عماد ناصر الدين
A25: احمد قرفلي
A26: محمد شحاده
A27: هاني مدلل
A28: فادي شبو
A29: علي جلوان
A30: محمد شماعة
A31: هاني المعاز
A32: محمد بركات
A33: عبد الناصر الحناوي
A34: شادي حداد
A35: رمضان شبارو
A36: احمد الحجي
A37: عماد خليفة
A38: رامز ارناؤوط
A39: مهدي عطية
A40: حسن دبوق
A41: بلال معروف
A42: خالد العانوتي
A43: احمد صيداوي
A44: محمد حسن عثمان
A45: عبد الله فخري
A46: مروان الكوش
A47: محمود خالد
A48: حمزة الأحمد
A49: محمود بيضون
A50: منير دلباني
A51: ناصر كيلاني
A52: محمد شويكي
A53: ربيع جمعة
A54: حسين جمول
A55: حمزة العسراوي
A56: هيثم حجازي
A57: رمضان فخرو
A58: فادي غشام
A59: فادي غشام
A60: عيسى زيدان
A61: إبراهيم الجربي
A62: علي كساب
A63: حسن رزق الله دروبي
A64: رمضان جدايل
A65: علي عوطه
A66: محد دبق
A67: طلعت الحاج
A68: عبد الله عيتاني
A69: محمد الرمش
A70: ناجي فاضل
A71: حسن فهد حمدان
A72: هادي فرحات
A73: خالد البنا
A74: علي الدهيني
A75: أسامة حجولا
A76: جهاد حسن
A77: محمود هاشم
A78: خليل دغمان
A79: حسين شمص
A80: هلال صيرا
A81: حسين جواد
A82: عمر اصلان
A83: عادل مشيك
A84: محمد قباني
A85: علي جلول
A86: احمد نعماني
A87: إبراهيم الهاشمي
A88: منير الدرزي
A89: زياد الكردي
A90: مازن مناصفي
A91: مصطفى عسيلي
A92: حسين إبراهيم
A93: محمد حسنين
A94: وسيم المصري

Sheet site
A1: المشروع | B1: سعر الساعة | C1: معاش شهري | D1: سعر اليوم | E1: بدل نقل | F1: بدل النقل شهري | G1: شهري
A2: بارك فيو | B2: =D2/8 -> 1.057692308 | C2: 350 | D2: =G2/26 -> 8.461538462 | E2: 5 | F2: =E2*26 -> 130 | G2: =C2-F2 -> 220
A3: غاردن فيو | B3: 0.8173076923 | C3: 300 | D3: =G3/26 -> 6.538461538 | E3: 5 | F3: =E3*26 -> 130 | G3: 170
A4: نور غاردن | B4: 1.057692308 | C4: 350 | D4: 8.461538462 | E4: 5 | F4: 130 | G4: 220
A5: بيروت واي | B5: 1.057692308 | C5: 350 | D5: 8.461538462 | E5: 5 | F5: 130 | G5: 220
A6: اوربان ماركت | B6: 1.057692308 | C6: 350 | D6: 8.461538462 | E6: 5 | F6: 130 | G6: 220
A7: الصياد | B7: 1.057692308 | C7: 350 | D7: 8.461538462 | E7: 5 | F7: 130 | G7: 220
A8: موراي | B8: 1.298076923 | C8: 400 | D8: 10.38461538 | E8: 5 | F8: 130 | G8: 270
A9: هوشر | B9: 1.057692308 | C9: 350 | D9: 8.461538462 | E9: 5 | F9: 130 | G9: 220
A10: ريفييرا | B10: 1.057692308 | C10: 350 | D10: 8.461538462 | E10: 5 | F10: 130 | G10: 220
A11: دلفا | B11: 1.057692308 | C11: 350 | D11: 8.461538462 | E11: 5 | F11: 130 | G11: 220
A12: ARC | B12: -0.625 | D12: -5 | E12: 5 | F12: 130 | G12: -130
A13: منارة 587 | B13: 1.057692308 | C13: 350 | D13: 8.461538462 | E13: 5 | F13: 130 | G13: 220
A14: بيروت 700 | B14: 1.298076923 | C14: 400 | D14: 10.38461538 | E14: 5 | F14: 130 | G14: 270
A15: كركاس | B15: 1.057692308 | C15: 350 | D15: 8.461538462 | E15: 5 | F15: 130 | G15: 220
A16: ويفز تاور | B16: 1.057692308 | C16: 350 | D16: 8.461538462 | E16: 5 | F16: 130 | G16: 220
A17: بتي كافيه روشة | B17: -0.625 | D17: -5 | E17: 5 | F17: 130 | G17: -130
A18: عمارة الروشة | B18: 1.057692308 | C18: 350 | D18: 8.461538462 | E18: 5 | F18: 130 | G18: 220
A19: يونيفرسال | B19: 1.057692308 | C19: 350 | D19: 8.461538462 | E19: 5 | F19: 130 | G19: 220
A20: السراي | B20: 1.057692308 | C20: 350 | D20: 8.461538462 | E20: 5 | F20: 130 | G20: 220
A21: في فردان | B21: 1.057692308 | C21: 350 | D21: 8.461538462 | E21: 5 | F21: 130 | G21: 220
A22: اليسيا | B22: 1.298076923 | C22: 400 | D22: 10.38461538 | E22: 5 | F22: 130 | G22: 270
A23: قريطم | B23: 1.105769231 | C23: 360 | D23: 8.846153846 | E23: 5 | F23: 130 | G23: 230
A24: بيروت 2020 | B24: 1.057692308 | C24: 350 | D24: 8.461538462 | E24: 5 | F24: 130 | G24: 220
A25: ابراج بيروت | B25: 1.057692308 | C25: 350 | D25: 8.461538462 | E25: 5 | F25: 130 | G25: 220
A26: عيادات | B26: 1.057692308 | C26: 350 | D26: 8.461538462 | E26: 5 | F26: 130 | G26: 220
A27: صيفي رايز | B27: 1.057692308 | C27: 350 | D27: 8.461538462 | E27: 5 | F27: 130 | G27: 220
A28: مبنى الزجاج | B28: =D28/12 -> 0.8653846154 | C28: 400 | D28: 10.38461538 | E28: 5 | F28: 130 | G28: 270
A29: سيوفي 4535 | B29: =D29/12 -> 0.8653846154 | C29: 400 | D29: 10.38461538 | E29: 5 | F29: 130 | G29: 270
A30: بارك السيوفي | B30: =D30/8 -> 1.057692308 | C30: 350 | D30: 8.461538462 | E30: 5 | F30: 130 | G30: 220
A31: الرميل | B31: =D31/12 -> 0.8653846154 | C31: 400 | D31: 10.38461538 | E31: 5 | F31: 130 | G31: 270
A32: البيال تنس | B32: =D32/8 -> -0.625 | D32: -5 | E32: 5 | F32: 130 | G32: -130
A33: كورتيارد | B33: -0.625 | D33: -5 | E33: 5 | F33: 130 | G33: -130
A34: سكاي لاين | B34: -0.625 | D34: -5 | E34: 5 | F34: 130 | G34: =C34-F34 -> -130
A35: صن رايز | B35: -0.625 | D35: -5 | E35: 5 | F35: 130 | G35: -130
A36: كليمنصو 500 | B36: -0.625 | D36: -5 | E36: 5 | F36: 130 | G36: -130
A37: مطعم تهنا | B37: -0.625 | D37: -5 | E37: 5 | F37: 130 | G37: -130
A38: لو بتي كافيه | B38: -0.625 | D38: -5 | E38: 5 | F38: 130 | G38: -130
A39: فوش 131 | B39: -0.625 | D39: -5 | E39: 5 | F39: 130 | G39: -130
A40: دار العجزة | B40: 1.057692308 | C40: 350 | D40: 8.461538462 | E40: 5 | F40: 130 | G40: 220
A41: وزارة الصحة | B41: 1.057692308 | C41: 350 | D41: 8.461538462 | E41: 5 | F41: 130 | G41: 220
A42: حازميه 127 | B42: -0.625 | D42: -5 | E42: 5 | F42: 130 | G42: -130
A43: مطاحن لبنان | B43: -0.625 | D43: -5 | E43: 5 | F43: 130 | G43: -130
A44: VOGO | B44: -0.625 | D44: -5 | E44: 5 | F44: 130 | G44: -130
A45: عياد | B45: -0.625 | D45: -5 | E45: 5 | F45: 130 | G45: -130
A46: عبد الله رزيدانس 1 حازمية | B46: -0.625 | D46: -5 | E46: 5 | F46: 130 | G46: -130
A47: جفينور | B47: -0.625 | D47: -5 | E47: 5 | F47: 130 | G47: -130
A48: فرنش افنيو | B48: -0.625 | D48: -5 | E48: 5 | F48: 130 | G48: -130
A49: سيدم | B49: -0.625 | D49: -5 | E49: 5 | F49: 130 | G49: -130
A50: نور غاردن 1 | B50: -0.625 | D50: -5 | E50: 5 | F50: 130 | G50: -130
A51: هوريزون | B51: -0.625 | D51: -5 | E51: 5 | F51: 130 | G51: -130
A52: ملاعب قصقص | B52: -0.625 | D52: -5 | E52: 5 | F52: 130 | G52: -130
A53: قريطم تعزيز | B53: -0.625 | D53: -5 | E53: 5 | F53: 130 | G53: -130
A54: اللمبي غيت | B54: -0.625 | D54: -5 | E54: 5 | F54: 130 | G54: -130
A55: كومودور | B55: -0.625 | D55: -5 | E55: 5 | F55: 130 | G55: -130
A56: رليف | B56: -0.625 | D56: -5 | E56: 5 | F56: 130 | G56: -130

Sheet holiday
A1: حضور | B1: 5 | C1: يضاف بدل نقل 5$
A2: غياب | B2: 0 | C2: بدل نقل صفر
A3: سنوية | B3: 0 | C3: ينقص بدل نقل -5$
A4: مرضية | B4: 0 | C4: بدل نقل صفر
A5: وفاة | B5: 0 | C5: بدل نقل صفر

Sheet دوام
A1: M | B1: صباحي 8 ساعات عمل
A2: E | B2: مسائي 8 ساعات عمل
A3: N | B3: ليلي 8 ساعات عمل
A4: M+ | B4: صباحي 12 ساعة عمل
A5: E+ | B5: مسائي 12 ساعة عمل

Sheet يومية
A1: تاريخ | B1: الاسم والشهرة | C1: المشروع | D1: عدد الساعات | E1: دوام | F1: سعر الساعة | G1: حضور | H1: نقل
A2: 2025-01-01 | B2: مروان نجم الدين | C2: بيروت 700 | D2: 8 | E2: M | F2: =SUM(IF(C2=site!A$2:A$56,site!B$2:B$56,"")) -> 1.298076923 | G2: حضور | H2: =SUM(IF(G2=holiday!A$1:A$5,holiday!B$1:B$5,"")) -> 5 | O2: المطلوب عند الضغط على اسم المشروع جلب سعر الساعة في المشروع
A3: 2025-01-01 | B3: غسان عبود | C3: بيروت 700 | D3: 8 | E3: E | F3: =SUM(IF(C3=site!A$2:A$56,site!B$2:B$56,"")) -> 1.298076923 | G3: سنوية | H3: =SUM(IF(G3=holiday!A$1:A$5,holiday!B$1:B$5,"")) -> 0
A4: 2025-01-01 | B4: مروان نجم الدين | C4: بيروت 700 | D4: 8 | E4: E+ | F4: =SUM(IF(C4=site!A$2:A$56,site!B$2:B$56,"")) -> 1.298076923 | G4: حضور | H4: =SUM(IF(G4=holiday!A$1:A$5,holiday!B$1:B$5,"")) -> 5
A5: 2025-01-01 | B5: خالد الظريف | C5: بيروت 700 | D5: 8 | E5: N | F5: =SUM(IF(C5=site!A$2:A$56,site!B$2:B$56,"")) -> 1.298076923 | G5: حضور | H5: =SUM(IF(G5=holiday!A$1:A$5,holiday!B$1:B$5,"")) -> 5 | O5: عند الضغط على الدوام جلب القيمة المقابلة له من جدول الدوامات
A6: 2025-01-02 | B6: خالد مارديني | C6: بيروت 700 | D6: 8 | E6: E | F6: =SUM(IF(C6=site!A$2:A$56,site!B$2:B$56,"")) -> 1.298076923 | G6: حضور | H6: =SUM(IF(G6=holiday!A$1:A$5,holiday!B$1:B$5,"")) -> 5
A7: 2025-01-01 | B7: محمد سبيتي | C7: وزارة الصحة | D7: 8 | E7: M | F7: =SUM(IF(C7=site!A$2:A$56,site!B$2:B$56,"")) -> 1.057692308 | G7: حضور | H7: =SUM(IF(G7=holiday!A$1:A$5,holiday!B$1:B$5,"")) -> 5 | O7: كيفية تصفية البيانات نهاية الشهر وحساب الرواتب وترحيله الى شيت 1
A8: 2025-01-01 | B8: حسين شعيتو | C8: وزارة الصحة | D8: 8 | E8: M | F8: =SUM(IF(C8=site!A$2:A$56,site!B$2:B$56,"")) -> 1.057692308 | G8: حضور | H8: =SUM(IF(G8=holiday!A$1:A$5,holiday!B$1:B$5,"")) -> 5
A9: 2025-01-01 | B9: عصام شعيتو | C9: وزارة الصحة | D9: 0 | E9: M | F9: =SUM(IF(C9=site!A$2:A$56,site!B$2:B$56,"")) -> 1.057692308 | G9: غياب | H9: =SUM(IF(G9=holiday!A$1:A$5,holiday!B$1:B$5,"")) -> 0
A10: 2025-01-01 | B10: احمد العتري | C10: دار العجزة | D10: 8 | E10: M | F10: =SUM(IF(C10=site!A$2:A$56,site!B$2:B$56,"")) -> 1.057692308 | G10: حضور | H10: =SUM(IF(G10=holiday!A$1:A$5,holiday!B$1:B$5,"")) -> 5
A11: 2025-01-01 | B11: محمد حمد | C11: دار العجزة | D11: 8 | E11: M | F11: =SUM(IF(C11=site!A$2:A$56,site!B$2:B$56,"")) -> 1.057692308 | G11: حضور | H11: =SUM(IF(G11=holiday!A$1:A$5,holiday!B$1:B$5,"")) -> 5
A12: 2025-01-02 | B12: مروان نجم الدين | C12: قريطم | D12: 8 | E12: M | F12: =SUM(IF(C12=site!A$2:A$56,site!B$2:B$56,"")) -> 1.105769231 | G12: سنوية | H12: =SUM(IF(G12=holiday!A$1:A$5,holiday!B$1:B$5,"")) -> 0
A13: 2025-01-02 | B13: غسان عبود | C13: بيروت 700 | D13: 8 | E13: E | F13: =SUM(IF(C13=site!A$2:A$56,site!B$2:B$56,"")) -> 1.298076923 | G13: حضور | H13: =SUM(IF(G13=holiday!A$1:A$5,holiday!B$1:B$5,"")) -> 5
A14: 2025-01-02 | B14: أنور الجبيلي | C14: بيروت 700 | D14: 8 | E14: E+ | F14: =SUM(IF(C14=site!A$2:A$56,site!B$2:B$56,"")) -> 1.298076923 | G14: حضور | H14: =SUM(IF(G14=holiday!A$1:A$5,holiday!B$1:B$5,"")) -> 5
A15: 2025-01-02 | B15: خالد الظريف | C15: بيروت 700 | D15: 8 | E15: N | F15: =SUM(IF(C15=site!A$2:A$56,site!B$2:B$56,"")) -> 1.298076923 | G15: حضور | H15: =SUM(IF(G15=holiday!A$1:A$5,holiday!B$1:B$5,"")) -> 5
A16: 2025-01-02 | B16: خالد مارديني | C16: بيروت 700 | D16: 8 | E16: M | F16: =SUM(IF(C16=site!A$2:A$56,site!B$2:B$56,"")) -> 1.298076923 | G16: حضور | H16: =SUM(IF(G16=holiday!A$1:A$5,holiday!B$1:B$5,"")) -> 5
A17: 2025-01-02 | B17: محمد سبيتي | C17: غاردن فيو | D17: 8 | E17: M | F17: =SUM(IF(C17=site!A$2:A$56,site!B$2:B$56,"")) -> 0.8173076923 | G17: سنوية | H17: =SUM(IF(G17=holiday!A$1:A$5,holiday!B$1:B$5,"")) -> 0
A18: 2025-01-02 | B18: حسين شعيتو | C18: وزارة الصحة | D18: 0 | E18: M | F18: =SUM(IF(C18=site!A$2:A$56,site!B$2:B$56,"")) -> 1.057692308 | G18: غياب | H18: =SUM(IF(G18=holiday!A$1:A$5,holiday!B$1:B$5,"")) -> 0
A19: 2025-01-02 | B19: عصام شعيتو | C19: وزارة الصحة | D19: 8 | E19: M | F19: =SUM(IF(C19=site!A$2:A$56,site!B$2:B$56,"")) -> 1.057692308 | G19: حضور | H19: =SUM(IF(G19=holiday!A$1:A$5,holiday!B$1:B$5,"")) -> 5
A20: 2025-01-02 | B20: احمد العتري | C20: دار العجزة | D20: 8 | E20: M | F20: =SUM(IF(C20=site!A$2:A$56,site!B$2:B$56,"")) -> 1.057692308 | G20: حضور | H20: =SUM(IF(G20=holiday!A$1:A$5,holiday!B$1:B$5,"")) -> 5
A21: 2025-01-02 | B21: محمد حمد | C21: وزارة الصحة | D21: 8 | E21: M | F21: =SUM(IF(C21=site!A$2:A$56,site!B$2:B$56,"")) -> 1.057692308 | G21: حضور | H21: =SUM(IF(G21=holiday!A$1:A$5,holiday!B$1:B$5,"")) -> 5
